bitfinex-derivatives/quotes_BNBF0:USTF0_20250425
["timestamp","ask_amount","ask_price","bid_price","bid_amount"]
[1745578081855,2.50279019,606.85,605.66,0.30299381]
[1745578082050,1.37278215,606.84,605.66,0.30299381]
[1745578082255,2.50279019,606.83,605.66,0.30299381]
[1745578082451,1.37278215,606.82,605.66,0.30299381]
[1745578082652,1.37278215,606.81,605.66,0.30299381]
[1745578082850,2.50279019,606.8,605.67,0.30298914]
[1745578083056,1.37278215,606.79,605.66,0.30298914]
[1745578083354,2.50279019,606.78,605.65,2.288]
[1745578083555,1.37278215,606.77,605.66,0.30299178]
[1745578083751,1.37278215,606.76,605.66,0.30299178]
[1745578084056,2.50279019,606.75,605.66,0.30299178]
[1745578084257,1.3749823,606.74,605.66,0.30299178]
[1745578084552,2.50499034,606.73,605.66,0.30299178]
[1745578084756,1.3749823,606.72,605.66,0.30299178]
[1745578085054,1.13000804,606.73,605.66,0.30299178]
[1745578085055,1.3749823,606.71,605.66,0.30299178]
[1745578085252,2.50499034,606.7,605.66,0.30299178]
[1745578085451,1.3749823,606.69,605.66,0.30299178]
[1745578085651,1.3749823,606.68,605.66,0.30299178]
[1745578085853,1.3749823,606.67,605.65,2.288]
[1745578086054,1.3749823,606.66,605.66,0.3029874]
[1745578086251,1.3749823,606.65,605.66,0.3029874]
[1745578086456,1.3749823,606.64,605.66,0.3029874]
[1745578086656,1.3749823,606.63,605.66,0.3029874]
[1745578086856,2.50499034,606.62,605.66,0.3029874]
[1745578087057,1.3749823,606.61,605.66,0.3029874]
[1745578087257,2.50499034,606.6,605.66,0.3029874]
[1745578087458,1.3749823,606.59,605.65,2.288]
[1745578087659,1.3749823,606.58,605.66,0.30299089]
[1745578087853,1.3749823,606.57,605.66,0.30299089]
[1745578088054,1.3749823,606.56,605.66,0.30299089]
[1745578088254,2.50499034,606.55,605.66,0.30299089]
[1745578088470,1.3749823,606.54,605.66,0.30299089]
[1745578088653,1.3749823,606.53,605.66,0.30299089]
[1745578088957,2.50499034,606.52,605.66,0.30299089]
[1745578089154,1.3749823,606.51,605.66,0.30299089]
[1745578089358,1.3749823,606.5,605.66,0.30299089]
[1745578089558,2.50499034,606.49,605.66,1.324]
[1745578089760,1.3749823,606.48,605.66,1.324]
[1745578089964,1.3749823,606.47,605.66,1.324]
[1745578090259,2.50499034,606.46,605.66,1.324]
[1745578090458,1.3749823,606.45,605.66,1.324]
[1745578090659,2.50499034,606.44,605.66,1.324]
[1745578090852,1.3749823,606.43,605.66,1.324]
[1745578091056,2.50499034,606.42,605.66,1.324]
[1745578091255,2.50499034,606.41,605.66,1.324]
[1745578091454,1.13000804,606.41,605.66,1.324]
[1745578091663,2.50477561,606.4,605.66,1.324]
[1745578091960,1.37476757,606.39,605.66,1.324]
[1745578092160,1.37476757,606.38,605.66,1.324]
[1745578092358,1.37476757,606.37,605.66,1.324]
[1745578092554,1.37476757,606.36,605.66,1.324]
[1745578092857,2.50477561,606.35,605.66,1.324]
[1745578093055,1.37476757,606.34,605.66,1.324]
[1745578093359,1.37475125,606.33,605.66,1.324]
[1745578093556,2.50475929,606.32,605.66,1.324]
[1745578093859,2.50475929,606.31,605.66,1.324]
[1745578094059,1.37475125,606.3,605.66,1.324]
[1745578094259,1.37475125,606.29,605.66,1.324]
[1745578094458,1.37475125,606.28,605.66,1.324]
[1745578094655,1.37475125,606.27,605.66,1.324]
[1745578094858,1.37475125,606.26,605.66,1.324]
[1745578095060,2.50475929,606.25,605.66,1.324]
[1745578095253,1.3749012,606.24,605.66,1.324]
[1745578095459,1.3749012,606.23,605.66,1.324]
[1745578095659,1.3749012,606.22,605.66,1.324]
[1745578095856,2.50490924,606.21,605.66,1.324]
[1745578096059,1.3749012,606.2,605.66,1.324]
[1745578096260,1.3749012,606.19,605.66,1.324]
[1745578096558,2.50490924,606.18,605.66,1.324]
[1745578096761,1.3749012,606.17,605.66,1.324]
[1745578096962,2.50493237,606.16,605.66,1.324]
[1745578097262,1.37492433,606.15,605.66,1.324]
[1745578097562,2.50493237,606.14,605.66,1.324]
[1745578097761,1.37492433,606.13,605.66,1.324]
[1745578097963,1.37492433,606.12,605.66,1.324]
[1745578098159,2.50493237,606.11,605.66,1.324]
[1745578098361,2.50493237,606.1,605.66,1.324]
[1745578098563,1.37492433,606.09,605.66,1.324]
[1745578098761,2.50493237,606.08,605.66,1.324]
[1745578098964,1.37492433,606.07,605.66,1.324]
[1745578099163,2.50493237,606.06,605.66,1.324]
[1745578099365,1.37492433,606.05,605.66,1.324]
[1745578099564,1.13000804,606.04,605.66,1.324]
[1745578100061,1.13000804,606.03,605.66,1.324]
[1745578100866,1.13000804,606.02,605.66,1.324]
[1745578101066,1.37504473,606.01,605.66,1.324]
[1745578101266,1.37504473,606.0,605.65,0.28712516]
[1745578101466,1.37504473,605.99,605.65,0.28712516]
[1745578101671,2.50505277,605.98,605.42,1.04680513]
[1745578101966,1.37504473,605.97,605.65,0.28719506]
[1745578102266,2.50505277,605.96,605.42,1.04680513]
[1745578102467,1.37475929,605.95,605.42,1.04680513]
[1745578102667,1.37475929,605.94,605.43,0.30310545]
[1745578102863,1.37475929,605.93,605.42,1.04680513]
[1745578103068,2.50479727,605.92,605.43,0.2871998]
[1745578103368,1.37478923,605.91,605.44,0.30310865]
[1745578103567,2.50479727,605.9,605.44,0.30310865]
[1745578103767,1.37478923,605.89,605.44,0.30310865]
[1745578103963,1.13000804,605.89,605.44,0.30310865]
[1745578104963,1.13000804,605.88,605.45,0.30310865]
[1745578105169,1.13000804,605.87,605.44,0.30310865]
[1745578105367,1.13000804,605.87,605.45,0.30310865]
[1745578105570,1.13000804,605.86,605.44,0.30310865]
[1745578105864,1.13000804,605.86,605.43,0.28720573]
[1745578106071,1.37514112,605.85,605.44,0.30312343]
[1745578106266,1.13000804,605.86,605.43,0.28720573]
[1745578106469,1.13000804,605.85,605.44,0.30312925]
[1745578106771,1.37519685,605.84,605.44,0.30312925]
[1745578106965,1.13000804,605.85,605.44,0.30312925]
[1745578107163,2.50528187,605.84,605.43,0.28720573]
[1745578107368,1.37527383,605.83,605.43,0.28720573]
[1745578107565,1.37527383,605.82,605.27,1.04680513]
[1745578107869,2.50528187,605.81,605.43,0.28726974]
[1745578108070,1.37427705,605.8,605.27,1.04680513]
[1745578108270,2.50428509,605.79,605.43,0.28727211]
[1745578108570,2.50428509,605.78,604.67,1.04680513]
[1745578108771,1.37427705,605.77,604.68,0.30319549]
[1745578108965,1.13000804,605.78,605.43,0.28727448]
[1745578109166,1.13000804,605.76,604.67,1.04680513]
[1745578109367,1.13000804,605.76,605.43,0.28734564]
[1745578109565,1.13000804,605.76,604.67,1.04680513]
[1745578109768,1.13000804,605.75,604.68,0.30319447]
[1745578109964,1.13000804,605.74,605.43,0.2873492]
[1745578110169,1.13000804,605.74,604.67,1.04680513]
[1745578110369,1.13000804,605.74,605.43,0.28735039]
[1745578110565,1.13000804,605.73,605.43,0.28735039]
[1745578110768,1.13000804,605.73,604.67,1.04680513]
[1745578110970,1.13000804,605.73,604.68,0.30316165]
[1745578111171,1.24128218,608.49,604.68,0.30316165]
[1745578111367,1.37300759,608.48,604.68,0.30316165]
[1745578111566,1.37296285,608.47,604.69,0.30316165]
[1745578111767,1.37296285,608.46,604.64,0.30316165]
[1745578111969,1.37296285,608.45,604.69,0.28701268]
[1745578112168,1.37296285,608.44,604.7,0.30316165]
[1745578112368,2.50383649,608.43,604.7,0.30316165]
[1745578112570,2.50383649,608.42,604.71,0.30313835]
[1745578112873,1.37296285,608.41,604.72,0.30313835]
[1745578113074,2.50383649,608.4,604.73,0.30313835]
[1745578113374,1.13087364,608.4,604.74,0.30313845]
[1745578113571,1.37345574,608.39,604.75,0.30313845]
[1745578113775,2.50432938,608.38,604.64,0.30313845]
[1745578113976,1.37345574,608.37,604.71,0.28701386]
[1745578114175,1.37345574,608.36,604.72,0.30313629]
[1745578114375,2.50432938,608.35,604.72,0.30313629]
[1745578114576,1.37345574,608.34,604.87,1.04680513]
[1745578114776,1.37348347,608.33,604.88,0.30313629]
[1745578115075,2.50435711,608.32,604.88,0.30313629]
[1745578115271,2.50435711,608.31,604.88,0.30313629]
[1745578115476,1.37348347,608.3,604.88,0.30313629]
[1745578115682,1.37348347,608.29,604.88,0.30313629]
[1745578115874,1.37348347,608.28,604.88,0.30313629]
[1745578116074,1.37348347,608.27,604.88,0.30313629]
[1745578116274,1.37348347,608.26,604.88,0.30313629]
[1745578116473,1.37348347,608.25,604.88,0.30313629]
[1745578116678,1.37348347,608.24,604.88,0.30313629]
[1745578116981,1.24128218,608.18,604.95,1.04680513]
[1745578117280,1.37311487,608.17,604.96,1.47513629]
[1745578117478,1.37311487,608.16,604.97,0.30313629]
[1745578117675,2.50398851,608.15,604.97,0.30313629]
[1745578117879,1.37311487,608.14,604.97,0.30313629]
[1745578118178,2.50398851,608.13,604.97,0.30313629]
[1745578118381,1.37311487,608.12,604.97,0.30313629]
[1745578118575,1.37311487,608.11,604.97,0.30313629]
[1745578118777,1.37311487,608.1,604.96,1.172]
[1745578118993,1.24128218,607.84,605.05,1.04680513]
[1745578119178,2.50398851,607.83,605.06,0.30316307]
[1745578119380,1.37311487,607.82,605.06,0.30316307]
[1745578119576,2.50398851,607.81,605.06,0.30316307]
[1745578119777,1.37311487,607.8,605.06,0.30316307]
[1745578119980,2.50398851,607.79,605.06,0.30316307]
[1745578120280,1.37311487,607.78,605.06,0.30316307]
[1745578120481,1.37311487,607.77,605.06,1.39116307]
[1745578120682,1.37311487,607.76,605.07,0.30316307]
[1745578120883,1.37215659,607.75,605.07,0.30316307]
[1745578121089,2.50303023,607.74,605.07,0.30316307]
[1745578121284,1.37215659,607.73,605.07,0.30316307]
[1745578121580,2.50303023,607.72,605.07,0.30316307]
[1745578121780,1.37215659,607.71,605.07,0.30316307]
[1745578121984,1.37215659,607.7,605.06,1.088]
[1745578122183,1.37215659,607.69,605.07,0.30318624]
[1745578122382,2.50303023,607.68,605.07,0.30318624]
[1745578122586,1.37215659,607.67,605.07,0.30318624]
[1745578122781,1.37215659,607.66,605.07,0.30318624]
[1745578122985,1.37215659,607.65,605.07,0.30318624]
[1745578123183,1.37215659,607.64,605.07,0.30318624]
[1745578123387,1.37215659,607.63,605.07,0.30318624]
[1745578123587,2.50303023,607.62,605.07,0.30318624]
[1745578123886,1.37215659,607.61,605.07,0.30318624]
[1745578124087,1.37215659,607.6,605.07,0.30318624]
[1745578124287,1.37215659,607.59,605.07,0.30318624]
[1745578124489,2.50303023,607.58,605.07,0.30318624]
[1745578124685,1.37215659,607.57,605.08,0.30318624]
[1745578124884,1.37215659,607.56,605.09,0.30318624]
[1745578125089,1.37215659,607.55,605.1,0.30318624]
[1745578125385,2.50303023,607.54,605.11,0.30318624]
[1745578125585,1.37215659,607.53,605.07,0.30318624]
[1745578125791,1.37215659,607.52,605.08,1.34999137]
[1745578125991,1.37215659,607.52,605.09,0.30318624]
[1745578125992,2.50303023,607.51,605.09,0.30318624]
[1745578126294,1.37215659,607.5,605.09,0.30318624]
[1745578126490,1.37215659,607.49,605.09,0.30318624]
[1745578126691,1.37215659,607.48,605.09,0.30318624]
[1745578126893,2.50303023,607.47,605.09,0.30318624]
[1745578127094,1.37215659,607.46,605.1,1.144]
[1745578127321,2.50303023,607.45,605.11,0.30318624]
[1745578127498,1.37215659,607.44,605.11,0.30318624]
[1745578127690,2.50303023,607.43,605.11,0.30318624]
[1745578127890,1.37215659,607.42,605.11,0.30318624]
[1745578128096,1.37215659,607.41,605.11,0.30318624]
[1745578128296,1.37215659,607.4,605.11,0.30318624]
[1745578128490,1.37215659,607.39,605.12,0.30319417]
[1745578128692,1.37215659,607.38,605.13,0.30319417]
[1745578128890,1.37215659,607.37,605.11,0.30319417]
[1745578129198,1.37215659,607.36,605.12,0.30319417]
[1745578129395,1.37215659,607.35,605.11,0.30319417]
[1745578129596,2.50303023,607.34,605.11,0.30319417]
[1745578129804,1.37215659,607.33,605.11,0.30319417]
[1745578129997,1.37215659,607.32,605.1,1.144]
[1745578130191,1.37215659,607.31,605.11,0.30320959]
[1745578130392,1.37215659,607.3,605.11,0.30320959]
[1745578130592,1.37215659,607.29,605.11,0.30320959]
[1745578130795,2.50303023,607.28,605.11,0.30320959]
[1745578130991,1.37215659,607.27,605.11,0.30320959]
[1745578131193,1.37215659,607.26,605.11,0.30320959]
[1745578131392,1.13087364,607.28,605.11,0.30320959]
[1745578131393,1.37215659,607.25,605.11,0.30320959]
[1745578131595,1.37215659,607.24,605.11,0.30320959]
[1745578131795,2.50125704,607.23,605.11,0.30320959]
[1745578131996,1.3703834,607.22,605.11,0.30320959]
[1745578132198,1.3703834,607.21,605.11,0.30320959]
[1745578132397,2.50125704,607.2,605.11,0.30320959]
[1745578132596,1.3703834,607.19,605.11,0.30320959]
[1745578132800,1.3703834,607.18,605.11,0.30320959]
[1745578132997,1.3703834,607.17,605.11,0.30320959]
[1745578133199,1.3703834,607.16,605.12,0.3032898]
[1745578133393,2.50125704,607.15,605.13,0.3032898]
[1745578133699,1.3703834,607.14,605.14,0.3032898]
[1745578133900,1.3703834,607.13,605.11,0.3032898]
[1745578134099,1.3703834,607.12,605.1,1.144]
[1745578134294,1.3703834,607.11,605.11,0.30328699]
[1745578134499,2.50125704,607.1,605.11,0.30328699]
[1745578134693,1.3703834,607.09,605.1,1.144]
[1745578134893,1.3703834,607.08,605.11,0.30328936]
[1745578135098,1.3703834,607.07,605.11,0.30328936]
[1745578135299,2.50125704,607.06,605.11,0.30328936]
[1745578135597,1.3703834,607.05,605.11,0.30328936]
[1745578135794,1.3703834,607.04,605.11,0.30328936]
[1745578135999,2.50125704,607.03,605.11,0.30328936]
[1745578136200,1.3703834,607.02,605.1,1.144]
[1745578136396,1.3703834,607.01,605.11,0.3032932]
[1745578136600,1.3703834,607.0,605.11,0.3032932]
[1745578136800,1.3703834,606.99,605.1,1.144]
[1745578136999,1.3703834,606.98,605.12,1.13]
[1745578137205,1.36853796,606.97,605.12,1.13]
[1745578137400,1.36853796,606.96,605.12,1.13]
[1745578137597,1.36853796,606.95,605.12,1.13]
[1745578137809,2.4994116,606.94,605.12,1.13]
[1745578138097,1.36853796,606.93,605.13,1.455]
[1745578138301,1.36853796,606.92,605.13,1.455]
[1745578138501,2.4994116,606.91,605.13,1.455]
[1745578138704,1.36853796,606.9,605.13,1.455]
[1745578138903,1.36853796,606.89,605.13,1.455]
[1745578139103,1.36853796,606.88,605.13,1.455]
[1745578139304,1.36853796,606.87,605.13,1.455]
[1745578139597,2.4994116,606.86,605.13,1.455]
[1745578139802,1.36853796,606.85,605.13,1.455]
[1745578140003,2.4994116,606.84,605.13,1.455]
[1745578140204,1.36853796,606.83,605.13,1.455]
[1745578140402,2.4994116,606.82,605.13,1.455]
[1745578140601,1.36853796,606.81,605.13,1.455]
[1745578140800,1.36853796,606.8,605.13,1.455]
[1745578141006,1.36853796,606.79,605.13,1.455]
[1745578141308,2.4994116,606.78,605.13,1.455]
[1745578141502,1.36853796,606.77,605.13,1.455]
[1745578141702,1.36853796,606.76,605.13,1.455]
[1745578141903,1.36853796,606.75,605.13,1.455]
[1745578142128,1.36853796,606.74,605.13,1.455]
[1745578142303,2.4994116,606.73,605.13,1.455]
[1745578142510,1.36853796,606.72,605.13,1.455]
[1745578142801,2.4994116,606.71,605.13,1.455]
[1745578143007,2.4994116,606.7,605.13,1.455]
[1745578143222,1.36853796,606.69,605.13,1.455]
[1745578143407,2.4994116,606.68,605.13,1.455]
[1745578143609,2.4994116,606.67,605.13,1.455]
[1745578143804,1.36853796,606.66,605.13,1.455]
[1745578144107,2.4994116,606.65,605.13,1.455]
[1745578144309,2.4994116,606.64,605.13,1.455]
[1745578144504,1.36853796,606.63,605.13,1.455]
[1745578144704,1.36853796,606.62,605.13,1.455]
[1745578144907,1.36853796,606.61,605.13,1.455]
[1745578145109,1.36853796,606.6,605.13,1.455]
[1745578145410,1.36853796,606.59,605.13,1.455]
[1745578145609,2.4994116,606.58,605.13,1.455]
[1745578145810,1.36853796,606.57,605.13,1.455]
[1745578146011,1.36853796,606.56,605.13,1.455]
[1745578146211,1.36853796,606.55,605.13,1.455]
[1745578146411,1.36853796,606.54,605.13,1.455]
[1745578146712,1.36853796,606.53,605.13,1.455]
[1745578146909,2.4994116,606.52,605.13,1.455]
[1745578147110,1.36853796,606.51,605.13,1.455]
[1745578147313,2.4994116,606.5,605.13,1.455]
[1745578147511,1.36853796,606.49,605.13,1.455]
[1745578147708,1.36853796,606.48,605.13,1.455]
[1745578147913,1.36853796,606.47,605.13,1.455]
[1745578148213,1.36853796,606.46,605.13,1.455]
[1745578148440,1.36853796,606.45,605.13,1.455]
[1745578148615,2.4994116,606.44,605.13,1.455]
[1745578148814,1.36853796,606.43,605.13,1.455]
[1745578149011,2.4994116,606.42,605.13,1.455]
[1745578149214,2.4994116,606.41,605.13,1.455]
[1745578149415,1.36853796,606.4,605.13,1.455]
[1745578149614,1.36853796,606.39,605.13,1.455]
[1745578149915,2.4994116,606.38,605.13,1.455]
[1745578150113,1.36853796,606.37,605.13,1.455]
[1745578150313,1.36853796,606.36,605.13,1.455]
[1745578150511,2.4994116,606.35,605.13,1.455]
[1745578150711,1.36853796,606.34,605.13,1.455]
[1745578150915,1.36853796,606.33,605.13,1.455]
[1745578151113,1.36853796,606.32,605.13,1.455]
[1745578151314,1.36853796,606.31,605.13,1.455]
[1745578151531,1.36853796,606.3,605.13,1.455]
[1745578151713,1.36853796,606.29,605.13,1.455]
[1745578151910,1.36853796,606.28,605.13,1.455]
[1745578152114,1.36853796,606.27,605.13,1.455]
[1745578152316,1.36853796,606.26,605.13,1.455]
[1745578152510,2.4994116,606.25,605.13,1.455]
[1745578152715,1.36853796,606.24,605.13,1.455]
[1745578153017,1.36388135,606.23,605.13,1.455]
[1745578153212,1.36388135,606.22,605.13,1.455]
[1745578153411,2.11190371,608.29,605.13,1.455]
[1745578153412,2.49475499,606.21,605.13,1.455]
[1745578153613,1.36388135,606.2,605.13,1.455]
[1745578153912,1.36388135,606.19,605.13,1.455]
[1745578154114,2.49475499,606.18,605.13,1.455]
[1745578154413,1.36388135,606.17,605.13,1.455]
[1745578154636,2.49475499,606.16,605.13,1.455]
[1745578154918,2.49401951,606.15,605.13,1.455]
[1745578155218,1.36314587,606.14,605.13,1.455]
[1745578155421,1.36314587,606.13,605.13,1.455]
[1745578155618,1.36314587,606.12,605.13,1.455]
[1745578155812,1.36314587,606.11,605.13,1.455]
[1745578156015,1.36314587,606.1,605.13,1.455]
[1745578156218,1.36314587,606.09,605.13,1.455]
[1745578156416,1.36314587,606.08,605.13,1.455]
[1745578156720,2.49413489,606.07,605.13,1.455]
[1745578157014,1.36326125,606.06,605.13,1.455]
[1745578157314,2.49413489,606.05,605.13,1.455]
[1745578157518,1.36326125,606.04,605.13,1.455]
[1745578157722,1.36326125,606.03,605.13,1.455]
[1745578157917,1.36326125,606.02,605.13,1.455]
[1745578158119,1.36326125,606.01,605.13,1.455]
[1745578158318,1.13087364,606.02,605.13,1.455]
[1745578158319,1.36326125,606.0,605.13,1.455]
[1745578158514,1.36326125,605.99,605.13,1.455]
[1745578158715,1.36326125,605.98,605.13,1.455]
[1745578158918,1.36326125,605.97,605.13,1.455]
[1745578159214,2.49413489,605.96,605.13,1.455]
[1745578159420,1.36326125,605.95,605.13,1.455]
[1745578159618,1.36326125,605.94,605.13,1.455]
[1745578159814,1.36326125,605.93,605.13,1.455]
[1745578160019,1.36326125,605.92,605.13,1.455]
[1745578160218,1.36326125,605.91,605.13,1.455]
[1745578160421,1.36326125,605.9,605.13,1.455]
[1745578160618,1.36326125,605.89,605.13,1.455]
[1745578160815,1.36326125,605.88,605.13,1.455]
[1745578161014,1.36326125,605.87,605.13,1.455]
[1745578161220,2.49413489,605.86,605.13,1.455]
[1745578161520,2.49413489,605.85,605.13,1.455]
[1745578161815,2.49413489,605.84,605.13,1.455]
[1745578162020,1.36168461,605.83,605.13,1.455]
[1745578162213,1.36168461,605.82,605.13,1.455]
[1745578162418,1.36168461,605.81,605.13,1.455]
[1745578162615,1.36168461,605.8,605.13,1.455]
[1745578162815,1.36168461,605.79,605.13,1.455]
[1745578163019,1.13087364,605.83,605.13,1.455]
[1745578163020,2.49255825,605.78,605.13,1.455]
[1745578163220,1.36168461,605.77,605.13,1.455]
[1745578163521,1.36168461,605.76,605.13,1.455]
[1745578163715,1.36168461,605.75,605.13,1.455]
[1745578163919,1.36157054,605.74,605.13,1.455]
[1745578164120,2.49244418,605.73,605.13,1.455]
[1745578164316,1.36157054,605.72,605.13,1.455]
[1745578164516,1.36157054,605.71,605.13,1.455]
[1745578164716,2.49244418,605.7,605.13,1.455]
[1745578164921,1.36157054,605.69,605.13,1.455]
[1745578165123,1.36157054,605.68,605.13,1.455]
[1745578165421,1.36157054,605.67,605.13,1.455]
[1745578165621,1.36157054,605.66,605.13,1.455]
[1745578165817,1.36157054,605.65,605.13,1.455]
[1745578166017,1.36157054,605.64,604.97,0.28743702]
[1745578166216,2.49244418,605.63,604.98,0.30343031]
[1745578166421,1.36157054,605.62,604.98,0.30343031]
[1745578166615,1.36157054,605.61,604.97,0.28743702]
[1745578166819,1.36157054,605.6,604.97,0.28743702]
[1745578167018,1.36157054,605.59,604.97,0.28743702]
[1745578167217,1.36157054,605.58,604.97,0.28743702]
[1745578167417,1.36157054,605.57,604.97,0.28743702]
[1745578167623,1.36157054,605.56,604.97,0.28743702]
[1745578167829,1.36157054,605.55,604.61,1.04680513]
[1745578168017,2.49244418,605.54,604.62,0.30342081]
[1745578168321,1.36157054,605.53,604.62,0.30342081]
[1745578168520,2.49244418,605.52,604.62,0.30342081]
[1745578168719,1.36157054,605.51,604.62,0.30342081]
[1745578168920,1.36157054,605.5,604.63,0.28751776]
[1745578169116,1.36157054,605.49,604.64,0.30342081]
[1745578169320,1.36157054,605.48,604.64,0.30342081]
[1745578169519,2.49244418,605.47,604.64,0.30342081]
[1745578169722,1.36157054,605.46,604.64,0.30342081]
[1745578169920,1.36157054,605.45,604.64,0.30342081]
[1745578170117,1.36157054,605.44,604.64,0.30342081]
[1745578170317,1.36157054,605.43,604.64,0.30342081]
[1745578170518,2.49244418,605.42,604.64,0.30342081]
[1745578170720,1.36157054,605.41,604.64,0.30342081]
[1745578170919,1.36157054,605.4,604.63,0.28752845]
[1745578171123,1.36157054,605.39,604.64,0.30342081]
[1745578171322,1.36157054,605.38,604.64,0.30342081]
[1745578171624,1.36157054,605.37,604.64,0.30342081]
[1745578171823,1.36157054,605.36,604.64,0.30342081]
[1745578172020,1.36157054,605.35,604.64,0.30342081]
[1745578172218,1.36157054,605.34,604.65,0.30345968]
[1745578172421,1.36222245,605.33,604.64,0.30345968]
[1745578172618,1.36222245,605.32,604.65,0.30345968]
[1745578172822,2.49309609,605.31,604.64,0.30345968]
[1745578173122,1.36222245,605.3,604.64,0.30345968]
[1745578173327,1.13087364,605.31,604.64,0.30345968]
[1745578173620,2.49338189,605.3,604.64,0.30345968]
[1745578173827,1.13087364,605.3,604.65,0.30345968]
[1745578174121,1.13087364,605.3,604.66,0.30345968]
[1745578174323,2.11190371,608.04,604.63,0.28754271]
[1745578174324,1.13087364,605.29,604.64,0.30345968]
[1745578174520,1.13087364,605.29,604.65,0.30345968]
[1745578174720,1.13087364,605.29,604.66,0.30345968]
[1745578175021,1.24128218,607.58,604.67,0.30345968]
[1745578175218,1.36272799,607.57,604.63,0.28754271]
[1745578175423,1.36272799,607.56,604.64,0.30344557]
[1745578175718,1.36272799,607.55,604.64,0.30344557]
[1745578175922,1.36272799,607.54,604.64,0.30344557]
[1745578176117,2.48566057,607.53,604.64,0.30344557]
[1745578176323,1.36272799,607.52,604.64,0.30344557]
[1745578176517,1.36272799,607.51,604.64,0.30344557]
[1745578176715,1.36272799,607.5,604.64,0.30344557]
[1745578176919,2.48566057,607.49,604.65,0.303439]
[1745578177123,1.24128218,607.32,604.64,0.303439]
[1745578177418,2.48566057,607.31,604.64,0.303439]
[1745578177623,2.48566057,607.3,604.64,0.303439]
[1745578177820,1.36272799,607.29,604.64,0.303439]
[1745578178023,1.36272799,607.28,604.64,0.303439]
[1745578178225,2.48566057,607.27,604.64,0.303439]
[1745578178427,1.36454039,607.26,604.63,0.28725907]
[1745578178645,1.36454039,607.25,604.65,0.30344641]
[1745578178827,1.36454039,607.24,604.64,0.30344641]
[1745578179028,1.36454039,607.23,604.65,0.30344641]
[1745578179222,1.36454039,607.23,604.63,0.28725907]
[1745578179223,1.36454039,607.22,604.64,0.30344641]
[1745578179422,2.48747297,607.21,604.65,0.30344641]
[1745578179626,1.36454039,607.2,604.64,0.30344641]
[1745578179824,2.48747297,607.19,604.64,0.30344641]
[1745578180035,1.36454039,607.18,604.64,0.30344641]
[1745578180229,1.36454039,607.17,604.64,0.30344641]
[1745578180428,1.36454039,607.16,604.64,0.30344641]
[1745578180629,1.36454039,607.15,604.64,0.30344641]
[1745578180828,1.36454039,607.14,604.64,0.30344641]
[1745578181027,1.36454039,607.13,604.64,0.30344641]
[1745578181224,2.48747297,607.12,604.64,0.30344641]
[1745578181429,1.36454039,607.11,604.64,0.30344641]
[1745578181625,1.36454039,607.1,604.65,0.30345798]
[1745578181829,2.48747297,607.09,604.64,0.30345798]
[1745578182029,1.36454039,607.08,604.65,0.30345798]
[1745578182229,1.36454039,607.07,604.66,0.30345798]
[1745578182424,1.36454039,607.06,604.67,0.30345798]
[1745578182627,1.36454039,607.05,604.64,0.30345798]
[1745578182827,1.36454039,607.04,604.65,0.30345798]
[1745578183028,1.36454039,607.03,604.66,0.30345798]
[1745578183227,2.48747297,607.02,604.64,0.30345798]
[1745578183429,1.36454039,607.01,604.65,0.30345798]
[1745578183630,2.48747297,607.0,604.64,0.30345798]
[1745578183827,2.48747297,607.0,604.63,0.28725907]
[1745578183828,1.36635623,606.99,604.65,0.30345798]
[1745578184134,2.48932597,606.98,604.66,0.30345798]
[1745578184326,2.48932597,606.98,604.63,0.28725907]
[1745578184327,1.36639339,606.97,604.68,1.04680513]
[1745578184531,2.48932597,606.96,604.69,0.30345798]
[1745578184731,1.36639339,606.95,604.7,0.30345811]
[1745578184931,1.36639339,606.94,604.69,0.30345811]
[1745578185134,2.48932597,606.93,604.69,0.30345811]
[1745578185434,1.36639339,606.92,604.69,0.30345811]
[1745578185633,1.36639339,606.91,604.69,0.30345811]
[1745578185834,1.36639339,606.9,604.69,0.30345811]
[1745578186035,1.36639339,606.89,604.69,0.30345811]
[1745578186232,1.36639339,606.88,604.68,1.04680513]
[1745578186433,1.36639339,606.87,604.69,0.30345879]
[1745578186730,2.48932597,606.86,604.69,0.30345879]
[1745578186930,1.36639339,606.85,604.69,0.30345879]
[1745578187238,2.48932597,606.84,604.7,0.30345879]
[1745578187434,1.36639339,606.83,604.71,0.30345879]
[1745578187634,1.36639339,606.82,604.66,0.30345879]
[1745578187835,1.36639339,606.81,604.67,0.30345879]
[1745578188138,1.36639339,606.81,604.65,0.2873409]
[1745578188139,2.48932597,606.8,604.68,0.30345879]